[Event "Reykjavik Open 2024"]
[Site "Reykjavik"]
[Date "2024.03.18"]
[Round "6.22"]
[White "Ornolfsson, Magnus P."]
[Black "Larkin, Vladyslav"]
[Result "0-1"]
[ECO "B07"]
[WhiteElo "2163"]
[BlackElo "2450"]
[Annotator "TA"]
[PlyCount "90"]
[EventDate "2024.03.12"]
[EventCountry "ISL"]
[SourceTitle "playchess.com"]
[Source "ChessBase"]
[SourceQuality "1"]
[TimeControl "40/5400+30:1800+30"]

{[%evp 14,90,18,10,6,0,29,25,24,14,11,4,9,-9,5,6,20,9,19,5,17,-34,-34,-31,-20,-25,-25,-28,-29,-32,-27,-61,-26,-66,-57,-70,-63,-87,-83,-94,-75,-93,-85,-109,-106,-110,-100,-108,-94,-121,-116,-135,-147,-188,-196,-187,-183,-192,-189,-187,-190,-198,-198,-204,-206,-233,-225,-286,-293,-410,-344,-383,-382,-612,-591,-29988,-29989,-29989,-29990]} 1. e4 {[%emt 0:00:03]} d6 {[%emt 0:07:55]} 2. d4 {[%emt 0:00:44]} Nf6 {[%emt 0:00:04]} 3. Nc3 {[%emt 0:00:22]} c6 {[%emt 0:00:05]} 4. Nf3 {[%emt 0:01:41]} Bg4 {[%emt 0:00:07]} 5. Be2 {[%emt 0:01:18]} e6 {[%emt 0:00:42]} 6. h3 {[%emt 0:01:38]} Bh5 {[%emt 0:00:04]} 7. O-O {[%emt 0:01:26]} Be7 {[%emt 0:00:17]} 8. Re1 {[%emt 0:04:57]} d5 {[%emt 0:00:18]} 9. exd5 {[%emt 0:02:24]} Bxf3 {[%emt 0:00:11]} 10. Bxf3 {[%emt 0:00:17]} cxd5 {[%emt 0:00:04] White has an edge.} 11. Bg5 {[%emt 0:05:11] Black should prevent Bxf6.} O-O {[%emt 0:00:14]} 12. Qd3 {[%emt 0:05:46]} Nc6 {[%emt 0:00:42]} 13. Nd1 {[%emt 0:07:56]} Qb6 {[%emt 0:03:06]} 14. c3 {[%emt 0:01:09]} Rfc8 {[%emt 0:20:07][%cal Bf8c8,Bc8c7,Bc7d7][%mdl 32]} 15. b3 {[%emt 0:10:52]} Rc7 {[%emt 0:05:55]} 16. Ne3 {[%emt 0:05:52]} Rd7 {[%emt 0:00:06]} 17. Bxf6 {[%emt 0:05:18]} ({Better is} 17. Nc2 $11) 17... Bxf6 $15 {[%emt 0:00:14]} 18. Ng4 {[%emt 0:00:31]} Qd8 {[%emt 0:00:54]} 19. Rad1 {[%emt 0:04:23]} Rc8 {[%emt 0:01:30]} 20. Nxf6+ {[%emt 0:03:37]} Qxf6 {[%emt 0:02:56]} 21. Qe3 {[%emt 0:02:33]} g6 {[%emt 0:01:52]} 22. g4 {[%emt 0:03:50]} Ne7 {[%emt 0:02:34][%cal Bc6e7,Be7g6,Bg6f4][%mdl 32]} 23. Bg2 {[%emt 0:02:39][%cal Bf3g2,Bg2f1,Bf1d3][%mdl 32]} g5 {[%emt 0:03:27]} 24. Rc1 {[%emt 0:03:19]} Ng6 {[%emt 0:02:33]} 25. Red1 {[%emt 0:02:19]} Nf4 {[%emt 0:00:58]} 26. Bf1 {[%emt 0:00:57]} a6 {[%emt 0:02:04] Black is more active.} 27. Kh2 {[%emt 0:05:00]} Kg7 {[%emt 0:00:21]} 28. Bd3 {[%emt 0:02:58]} Rdc7 {[%emt 0:03:21]} 29. Bf1 {[%emt 0:00:54]} h5 {[%emt 0:01:31]} 30. gxh5 {[%emt 0:01:24]} Nxh5 {[%emt 0:00:05]} 31. c4 {[%emt 0:01:04][%cal Oh3h4]} Nf4 {[%emt 0:01:01]} 32. c5 {[%emt 0:01:36]} Rh8 {[%emt 0:00:32]} 33. Qe5 {[%emt 0:02:14]} Qxe5 {[%emt 0:00:31]} 34. dxe5 {[%emt 0:00:08]} a5 {[%emt 0:01:32]} 35. a3 {[%emt 0:01:39]} Ng6 {[%emt 0:00:09]} 36. Re1 {[%emt 0:01:18]} Rh4 {[%emt 0:00:36]} 37. Re3 {[%emt 0:02:41]} Rd4 {[%emt 0:03:59]} 38. Kg3 {[%emt 0:01:43]} Rc8 {[%emt 0:00:21]} 39. Bb5 {[%emt 0:03:20]} Rd2 {[%emt 0:00:39]} 40. Bf1 {[%emt 0:02:15]} Rb2 {[%emt 0:00:48]} 41. Bg2 {[%emt 0:08:29]} Nh4 {[%emt 0:00:39] [#] Strongly threatening ...Nf5+.} 42. Rd3 {[%emt 0:02:13]} Nf5+ {[%emt 0:00:38]} 43. Kg4 $2 {[%emt 0:01:28]} (43. Kh2) 43... Rxf2 $19 {[%emt 0:00:35] ( -> ...Rh8)} 44. Bxd5 {[%emt 0:02:58]} Kg6 {[%emt 0:00:49][%csl Gg5][%cal Rf2f4]} 45. h4 {[%emt 0:03:35]} Rh8 {[%emt 0:00:13] Weighted Error Value: White=0.43/Black=0.07 (flawless) .  Mistake:       	White=2     	---        Inaccurate:     	White=4     	Black=2      OK:         	White=7     	Black=17     Best:        	White=1     	---} 0-1

[Event "Reykjavik Open 2024"]
[Site "Reykjavik"]
[Date "2024.03.18"]
[Round "6.23"]
[White "Injac, Teodora"]
[Black "Mai, Alexander Oliver"]
[Result "1/2-1/2"]
[ECO "A13"]
[WhiteElo "2434"]
[BlackElo "2160"]
[Annotator "TA"]
[PlyCount "72"]
[EventDate "2024.03.12"]
[EventCountry "ISL"]
[SourceTitle "playchess.com"]
[Source "ChessBase"]
[SourceQuality "1"]
[TimeControl "40/5400+30:1800+30"]

{[%evp 9,72,8,8,3,17,0,0,0,0,0,0,0,4,-17,0,0,0,0,0,0,0,0,12,3,15,4,7,-8,7,-20,-20,-9,-13,-5,0,0,5,0,0,0,0,0,0,0,0,0,0,0,0,0,0,0,0,0,0,0,0,0,0,0,0,0,0,0,0]} 1. c4 {[%emt 0:01:18]} e6 {[%emt 0:02:44]} 2. Nf3 {[%emt 0:00:33]} d5 {[%emt 0:00:09]} 3. g3 {[%emt 0:00:13]} Nf6 {[%emt 0:00:05]} 4. Bg2 {[%emt 0:00:05]} dxc4 {[%emt 0:00:13]} 5. Qa4+ {[%emt 0:00:58]} Bd7 {[%emt 0:00:07] Die Stellung ist ausgeglichen.} 6. Qxc4 {[%emt 0:00:06]} c5 {[%emt 0:00:06]} 7. Ne5 {[%emt 0:12:20]} Qc8 {[%emt 0:00:08]} 8. O-O {[%emt 0:02:11]} Nc6 {[%emt 0:00:58]} 9. Nxd7 {[%emt 0:00:06]} Qxd7 {[%emt 0:00:05]} 10. b3 {[%emt 0:04:10]} Rc8 {[%emt 0:03:52]} 11. Qc2 {[%emt 0:03:04]} Be7 {[%emt 0:01:09]} 12. Bb2 {[%emt 0:00:05]} O-O {[%emt 0:00:12]} 13. Nc3 {[%emt 0:00:39]} Rfd8 {[%emt 0:05:38]} 14. Rad1 {[%emt 0:01:10]} b6 {[%emt 0:01:36]} 15. Qb1 {[%emt 0:04:55]} h6 {[%emt 0:02:12]} 16. Rfe1 {[%emt 0:04:05]} Qe8 {[%emt 0:04:42]} 17. Ne4 {[%emt 0:07:34]} Nxe4 {[%emt 0:01:49]} 18. Qxe4 {[%emt 0:00:33]} Rd6 {[%emt 0:04:29]} 19. Bc3 {[%emt 0:08:48]} Qd8 {[%emt 0:01:23]} 20. Qb1 {[%emt 0:17:54]} Bf6 {[%emt 0:05:47]} 21. Qa1 {[%emt 0:00:53]} Bxc3 {[%emt 0:02:10]} 22. dxc3 {[%emt 0:00:15]} Qd7 {[%emt 0:03:41]} 23. Rxd6 {[%emt 0:00:24]} Qxd6 {[%emt 0:00:03]} 24. Rd1 {[%emt 0:00:10]} Qc7 {[%emt 0:01:30]} 25. Qb1 {[%emt 0:01:32]} Rd8 {[%emt 0:07:31]} 26. Bxc6 {[%emt 0:04:50]} Rxd1+ {[%emt 0:00:06]} 27. Qxd1 {[%emt 0:00:03]} Qxc6 $11 {[%emt 0:00:07][%mdl 4096] Endspiel. KQ-KQ} 28. Qd8+ {[%emt 0:00:02]} Kh7 {[%emt 0:00:09]} 29. Qe7 {[%emt 0:00:10]} Qe4 {[%emt 0:01:21]} 30. Qxf7 {[%emt 0:06:27]} Qxe2 {[%emt 0:00:34]} 31. Qxa7 {[%emt 0:02:23][%cal Oa7a8]} Qe1+ {[%emt 0:02:18]} 32. Kg2 {[%emt 0:00:02]} Qe4+ {[%emt 0:00:10]} 33. Kf1 {[%emt 0:00:26]} Qd3+ {[%emt 0:05:30]} 34. Kg1 {[%emt 0:00:23]} Qb1+ {[%emt 0:00:44]} 35. Kg2 {[%emt 0:00:01][%cal Oa7a8]} Qe4+ {[%emt 0:00:12]} 36. Kg1 {[%emt 0:01:09][%cal Oa7a4]} Qb1+ {[%emt 0:00:43] Nicht viel passiert in dieser Partie.   Gewichteter Fehlerwert: Weiß=0.03 (makellos) /Schwarz=0.02 (makellos) .  Ungenau:       	Weiß=1     	---        OK:         	Weiß=7     	Schwarz=18    Bester:       	---       	Schwarz=2} 1/2-1/2

[Event "Reykjavik Open 2024"]
[Site "Reykjavik"]
[Date "2024.03.18"]
[Round "6.24"]
[White "Haldorsen, Benjamin"]
[Black "Pujari, Rucha"]
[Result "1/2-1/2"]
[ECO "C85"]
[WhiteElo "2426"]
[BlackElo "2147"]
[Annotator "TA"]
[PlyCount "76"]
[EventDate "2024.03.12"]
[EventCountry "ISL"]
[SourceTitle "playchess.com"]
[Source "ChessBase"]
[SourceQuality "1"]
[TimeControl "40/5400+30:1800+30"]

{[%evp 14,76,6,10,5,12,8,26,0,0,0,3,16,0,18,-9,17,1,27,23,25,22,47,43,35,36,35,43,43,32,70,72,68,68,71,62,66,8,8,9,26,0,0,0,0,-54,-59,-51,-75,-99,-33,-42,0,0,0,0,0,0,0,0,0,0,0,0,0]} 1. e4 {[%emt 0:02:40]} e5 {[%emt 0:01:31]} 2. Nf3 {[%emt 0:00:30]} Nc6 {[%emt 0:00:38]} 3. Bb5 {[%emt 0:01:34]} a6 {[%emt 0:00:16]} 4. Ba4 {[%emt 0:00:27]} Nf6 {[%emt 0:00:10][%cal Bg8f6,Bf6d7,Bd7b6,Bb6c4][%mdl 32]} 5. O-O {[%emt 0:00:33]} Be7 {[%emt 0:00:05]} 6. Bxc6 {[%emt 0:00:44]} dxc6 {[%emt 0:01:35]} 7. Nc3 {[%emt 0:00:08]} Nd7 {[%emt 0:05:05]} 8. d4 {[%emt 0:01:00]} exd4 {[%emt 0:03:04]} 9. Nxd4 {[%emt 0:00:07]} O-O {[%emt 0:01:30]} 10. Nf5 {[%emt 0:02:02]} Bf6 {[%emt 0:07:11] White has an edge.} 11. Qe1 {[%emt 0:00:25]} Nb6 {[%emt 0:06:55]} 12. Ng3 {[%emt 0:07:26]} Re8 {[%emt 0:08:00]} 13. Be3 {[%emt 0:10:21]} Qe7 {[%emt 0:05:54]} 14. f4 {[%emt 0:08:38]} Nc4 {[%emt 0:04:53]} (14... Nd5 $5) 15. b3 {[%emt 0:04:27]} Bxc3 {[%emt 0:12:12]} 16. Qxc3 {[%emt 0:00:48]} Nxe3 {[%emt 0:00:13]} 17. Qxe3 {[%emt 0:01:13]} f5 {[%emt 0:00:59]} 18. e5 {[%emt 0:16:33]} (18. Nxf5 $2 {perishes.} Bxf5 (18... Qxe4 19. Qxe4 Rxe4 20. Ng3 $14) 19. e5 Bxc2 $19) 18... Be6 {[%emt 0:02:34]} 19. Ne2 {[%emt 0:02:10]} c5 {[%emt 0:02:11]} 20. Rfd1 {[%emt 0:04:10]} Rad8 {[%emt 0:07:50]} 21. h3 {[%emt 0:08:24]} Bd5 {[%emt 0:03:09]} 22. c4 {[%emt 0:00:47]} Be6 {[%emt 0:11:45]} 23. Nc3 {[%emt 0:01:13]} b6 {[%emt 0:00:11]} 24. Kh2 {[%emt 0:08:26]} h6 {[%emt 0:05:20]} 25. Rd3 {[%emt 0:10:57]} ({White should try} 25. g3 $14) 25... Rxd3 $11 {[%emt 0:01:10]} 26. Qxd3 {[%emt 0:00:26]} Rd8 {[%emt 0:00:11]} 27. Qf3 {[%emt 0:02:10]} Rd4 {[%emt 0:01:25]} 28. Rd1 {[%emt 0:00:48]} Qd7 {[%emt 0:01:37]} 29. Nd5 {[%emt 0:01:49]} ({White should play} 29. a4 $11) 29... b5 $15 {[%emt 0:04:27]} 30. Rxd4 {[%emt 0:03:07]} cxd4 {[%emt 0:00:03]} 31. Qd3 {[%emt 0:00:13]} bxc4 {[%emt 0:02:54]} (31... a5 $17) 32. bxc4 {[%emt 0:00:04]} Bxd5 {[%emt 0:00:48]} 33. cxd5 {[%emt 0:00:04] The position is equal.} Qxd5 {[%emt 0:00:05] [#] And now ...Qe4 would win.} 34. Qxf5 $17 {[%emt 0:00:09] KQ-KQ} d3 {[%emt 0:00:37][%cal Od3d2]} 35. Qc8+ {[%emt 0:00:38]} Kh7 {[%emt 0:00:43] ...d2 is the strong threat.} 36. Qf5+ {[%emt 0:00:14]} Kg8 {[%emt 0:00:41][%cal Od3d2] Strongly threatening ...d2!} 37. Qc8+ {[%emt 0:00:05]} Kh7 {[%emt 0:00:03] [#] Threatens to win with ...d2.} 38. Qf5+ {[%emt 0:02:01]} Kg8 {[%emt 0:00:57] Weighted Error Value: White=0.11 (very precise) /Black=0.10 (very precise) .  Mistake:       	White=2     	Black=1      Inaccurate:     	White=2     	Black=4      OK:         	White=9     	Black=13     Best:        	White=2     	Black=2} 1/2-1/2

[Event "Reykjavik Open 2024"]
[Site "Reykjavik"]
[Date "2024.03.18"]
[Round "6.25"]
[White "Lu, Miaoyi"]
[Black "Bergsson, Stefan"]
[Result "1-0"]
[ECO "B31"]
[WhiteElo "2392"]
[BlackElo "2144"]
[Annotator "TA"]
[PlyCount "71"]
[EventDate "2024.03.12"]
[EventCountry "ISL"]
[SourceTitle "playchess.com"]
[Source "ChessBase"]
[SourceQuality "1"]
[TimeControl "40/5400+30:1800+30"]

{[%evp 11,71,14,38,17,22,21,22,21,20,17,14,19,69,58,110,109,103,85,102,61,69,41,51,42,85,85,84,55,87,0,0,0,0,0,0,0,0,-27,-70,-493,-525,-513,-479,-447,-430,-465,-470,-444,0,0,0,0,0,0,516,231,5317,5317,2085,1798,29997,29998]} 1. e4 {[%emt 0:00:01]} c5 {[%emt 0:06:53]} 2. Nf3 {[%emt 0:00:03]} Nc6 {[%emt 0:00:59]} 3. Bb5 {[%emt 0:00:03]} g6 {[%emt 0:00:21]} 4. O-O {[%emt 0:06:33]} Bg7 {[%emt 0:00:12]} 5. Re1 {[%emt 0:01:32]} e5 {[%emt 0:00:32]} 6. Bxc6 {[%emt 0:01:04]} dxc6 {[%emt 0:00:28]} 7. a4 {[%emt 0:00:02]} a5 {[%emt 0:00:24]} 8. Na3 {[%emt 0:00:12]} Ne7 {[%emt 0:01:00]} 9. Nc4 {[%emt 0:04:29] The position is equal.} Qc7 {[%emt 0:00:26]} 10. d3 {[%emt 0:00:02]} b6 {[%emt 0:00:20][%cal Bb7b6,Bb6a5][%mdl 32]} 11. Be3 {[%emt 0:00:26][%cal Ob2b4]} h6 {[%emt 0:04:03]} (11... Be6 $11) 12. b4 $14 {[%emt 0:02:56]} axb4 {[%emt 0:07:16] [#]} ({Black should try} 12... b5 $14) 13. a5 $1 $16 {[%emt 0:00:11][%mdl 512]} bxa5 {[%emt 0:08:29]} 14. Bxc5 {[%emt 0:00:04]} Be6 {[%emt 0:03:36]} 15. Bd6 {[%emt 0:18:46]} Qd8 {[%emt 0:00:25]} 16. Nfxe5 {[%emt 0:00:04]} Bxc4 {[%emt 0:13:42]} 17. Nxc4 {[%emt 0:00:02]} (17. dxc4 $2 Nc8 18. Bxb4 Qxd1 (18... Bxe5 $2 19. Qxd8+ Kxd8 20. Red1+ Ke8 21. Rxa5 $19) 19. Rexd1 Bxe5 $19) 17... Bxa1 {[%emt 0:01:08]} 18. Qxa1 {[%emt 0:00:12]} O-O {[%emt 0:01:04]} 19. Re3 {[%emt 0:09:06] White has more active pieces.} Re8 {[%emt 0:01:22][%cal Oe7d5] [#]} 20. Rh3 {[%emt 0:05:14]} (20. Bc5 $1 $16) 20... Nd5 $1 $11 {[%emt 0:07:12]} 21. exd5 {[%emt 0:24:09]} cxd5 $40 {[%emt 0:00:25][%mdl 128] Black mounts an attack.} 22. Rxh6 $1 {[%emt 0:03:54]} f6 {[%emt 0:02:00]} 23. Rxg6+ {[%emt 0:01:32]} Kf7 $1 {[%emt 0:01:20]} 24. Rh6 {[%emt 0:06:51]} (24. Bc7 $5 Qe7 (24... Qxc7 25. Qxf6#) 25. Ne5+ fxe5 26. Rh6 $11) 24... dxc4 {[%emt 0:01:46]} 25. Bc7 {[%emt 0:01:22][%mdl 8192] [#]} Qd4 $3 $19 {[%emt 0:04:39][%mdl 512]} 26. Qd1 {[%emt 0:00:02]} Qd5 {[%emt 0:15:04] ...Rh8 is the strong threat.} 27. Rh7+ {[%emt 0:04:39]} Kg8 {[%emt 0:01:49]} 28. Rh4 {[%emt 0:02:15]} cxd3 {[%emt 0:02:11]} 29. cxd3 {[%emt 0:02:07]} Rac8 $2 {[%emt 0:01:26]} ({Better is} 29... b3 $19 30. h3 b2 31. Qg4+ Qg5 32. Qc4+ Kg7) 30. Qg4+ $1 $11 {[%emt 0:01:34]} Qg5 {[%emt 0:01:08][%cal Re8e1]} 31. Qc4+ {[%emt 0:00:02]} Kf8 {[%emt 0:03:41][%cal Re8e1]} 32. g3 $1 {[%emt 0:00:13] Threatens to win with h3. Some like it hot} Re1+ $2 {[%emt 0:09:01]} (32... Qf5 $1 $11 {and Black stays safe.} 33. Bd6+ Kg7 34. Rg4+ Kh8 (34... Kh6 $2 35. Bf4+ Kh5 36. Qf7+ Kxg4 37. Kg2 $18) 35. Rh4+ Kg7 36. Rg4+ Kh8 (36... Kh6 $2 37. Bf4+ Kh5 38. Qf7+ Kxg4 39. Kg2 $18) 37. Rh4+ Kg7) 33. Kg2 $18 {[%emt 0:00:02]} Rc1 $2 {[%emt 0:01:20]} (33... Qf5) 34. Bd6+ {[%emt 0:01:37]} Kg7 {[%emt 0:00:09]} 35. Qe6 {[%emt 0:01:06] Threatening mate with Qd7+.} f5 {[%emt 0:01:37]} 36. Be5+ {[%emt 0:00:10] Weighted Error Value: White=0.25 (precise) /Black=0.77.  Loses game:     	White=1     	Black=1      Missed win:     	---       	Black=1      Mistake:       	White=1     	Black=3      Inaccurate:     	White=5     	Black=2      OK:         	White=7     	Black=8      Best:        	White=4     	Black=4      Strong:       	White=3     	Black=2      Brilliant:      	---       	Black=1} 1-0

[Event "Reykjavik Open 2024"]
[Site "Reykjavik"]
[Date "2024.03.18"]
[Round "6.26"]
[White "Eriksson, Jorgen"]
[Black "Sidhant, Mohapatra"]
[Result "0-1"]
[ECO "D02"]
[WhiteElo "2154"]
[BlackElo "2379"]
[Annotator "TA"]
[PlyCount "88"]
[EventDate "2024.03.12"]
[EventCountry "ISL"]
[SourceTitle "playchess.com"]
[Source "ChessBase"]
[SourceQuality "1"]
[TimeControl "40/5400+30:1800+30"]

{[%evp 9,88,3,16,-10,-1,-9,-10,-10,-5,-23,8,0,9,0,0,0,0,-9,-2,-22,-12,-14,0,-27,-20,-66,-16,-47,-51,-38,-22,-98,-107,-117,-56,-87,-66,-70,-81,-65,-77,-77,-75,-79,-77,-108,-108,-164,-163,-159,-110,-208,-133,-230,-142,-186,-170,-172,-131,-252,-239,-255,-235,-366,-326,-390,-277,-288,-292,-478,-490,-475,-441,-652,-664,-783,-751,-954,-920,-1253,-1199]} 1. d4 {[%emt 0:03:33]} d5 {[%emt 0:00:28]} 2. Bf4 {[%emt 0:00:15]} c5 {[%emt 0:00:38]} 3. e3 {[%emt 0:00:14]} Nc6 {[%emt 0:00:17]} 4. Nf3 {[%emt 0:00:55]} Nf6 {[%emt 0:00:08]} 5. Nbd2 {[%emt 0:01:48]} Nh5 {[%emt 0:02:12]} 6. Be5 {[%emt 0:29:32]} e6 {[%emt 0:00:16]} 7. c3 {[%emt 0:00:48][%cal Bc2c3,Bc3c4][%mdl 32]} f6 {[%emt 0:00:31]} 8. Bg3 {[%emt 0:00:13] Die Stellung ist ausgeglichen.} g6 {[%emt 0:00:13]} 9. Be2 {[%emt 0:10:01]} Be7 {[%emt 0:06:43]} 10. O-O {[%emt 0:09:21]} O-O {[%emt 0:01:16]} 11. c4 {[%emt 0:05:44]} Nxg3 {[%emt 0:01:07]} 12. hxg3 {[%emt 0:00:13]} cxd4 {[%emt 0:00:18]} 13. exd4 {[%emt 0:00:49]} Kg7 {[%emt 0:00:55]} 14. Nb3 {[%emt 0:10:57]} a5 {[%emt 0:03:17]} 15. cxd5 {[%emt 0:08:51]} exd5 {[%emt 0:00:18]} 16. a4 {[%emt 0:05:49]} Bd6 {[%emt 0:02:57]} 17. Ne1 {[%emt 0:01:50]} (17. Rc1 $11) 17... Qb6 {[%emt 0:01:00] Schwarz steht aktiver.} ({Vorzuziehen ist} 17... Rh8 $15) 18. Bf3 {[%emt 0:02:10]} Be6 {[%emt 0:00:27]} 19. Nd3 {[%emt 0:00:29]} Bf7 {[%emt 0:00:36][%cal Of8c8]} ({Ein No Go ist} 19... Nxd4 $6 20. Nxd4 Qxd4 21. Nf4 Qxd1 22. Nxe6+ Kf7 23. Raxd1 $14 (23. Rfxd1 Kxe6 24. Bxd5+ Kd7 $14)) 20. Ndc5 {[%emt 0:01:09]} (20. Nf4 $11) 20... Rfe8 $17 {[%emt 0:00:15]} 21. Qd3 {[%emt 0:00:46]} Nb4 {[%emt 0:01:28]} (21... Qc7 $17 {Weiss muss nun ...b6 beachten.} 22. Qd1 Re7) 22. Qb5 $15 {[%emt 0:01:08]} Qxb5 {[%emt 0:00:50]} 23. axb5 {[%emt 0:00:01]} b6 {[%emt 0:00:19]} 24. Na4 {[%emt 0:00:19]} Rab8 $36 {[%emt 0:00:06][%mdl 2048] Schwarz bestimmt, wo es lang geht.} 25. Rfe1 {[%emt 0:01:10]} Red8 {[%emt 0:01:30]} 26. Rad1 {[%emt 0:00:53]} h5 {[%emt 0:00:28]} 27. Re2 {[%emt 0:01:02]} g5 {[%emt 0:00:17] [#] ...g4 ist eine echte Drohung.} 28. Red2 {[%emt 0:01:16]} (28. Re3 $17 {war nötig.}) 28... g4 $19 {[%emt 0:00:13]} 29. Be2 {[%emt 0:00:05]} Bg6 {[%emt 0:01:17]} ({Besser ist} 29... f5 30. Bf1 Be8 (30... f4 $2 31. gxf4 Bxf4 32. Re2 $19)) 30. Rc1 {[%emt 0:01:25]} (30. Rf1 $17) 30... Rd7 {[%emt 0:00:58]} 31. Na1 {[%emt 0:01:21]} (31. Bf1 $17) 31... Kf7 {[%emt 0:00:59]} 32. Rcd1 {[%emt 0:01:30]} Rc7 {[%emt 0:00:29]} 33. Bf1 {[%emt 0:00:34]} Bf5 {[%emt 0:00:46]} 34. Be2 {[%emt 0:00:37]} (34. Nc3 $17 {war einen Versuch wert.}) 34... Kg6 {[%emt 0:00:09]} 35. Bf1 {[%emt 0:00:08]} Rh7 {[%emt 0:00:07]} 36. Re1 {[%emt 0:01:00]} (36. Nb3 $142) 36... Be4 {[%emt 0:00:45]} 37. Rde2 {[%emt 0:00:24]} h4 {[%emt 0:02:12]} 38. Rxe4 {[%emt 0:00:16]} dxe4 {[%emt 0:00:04]} 39. Rxe4 $2 {[%emt 0:00:11]} (39. gxh4 f5 (39... Rxh4 $2 40. g3 $19) 40. g3) 39... hxg3 {[%emt 0:00:07] Droht ...Kg5 und aus. Schwarz steht klar auf Gewinn.} 40. fxg3 {[%emt 0:00:33]} Kg5 {[%emt 0:00:12]} 41. Kf2 {[%emt 0:01:15]} (41. Re3 $142) 41... Rh1 {[%emt 0:03:06] Zielt auf ...f5 ab.} 42. Nb3 {[%emt 0:07:44]} f5 {[%emt 0:01:30]} 43. Re6 {[%emt 0:01:29] [#]} Bxg3+ $1 {[%emt 0:00:33][%mdl 512]} 44. Ke2 {[%emt 0:00:14]} (44. Kxg3 Rxf1) 44... Nd5 {[%emt 0:00:10] Gewichteter Fehlerwert: Weiß=0.63/Schwarz=0.17 (sehr präzise) .  Fehler:       	Weiß=9     	Schwarz=3     Ungenau:       	Weiß=4     	Schwarz=3     OK:         	Weiß=7     	Schwarz=16    Bester:       	Weiß=1     	---} 0-1